[Event "Titled Tuesday Blitz February 07 Early 2023"]
[White "Talibov, Shiroghlan"]
[Black "Mogranzini, Roberto"]
[WhiteFideId "13429078"]
[BlackFideId "810894"]
[WhiteElo "2359"]
[BlackElo "2459"]
[Result "1-0"]
[Round "03"]
[TimeControl "180+2"]
[Date "2023.02.07"]
[WhiteClock "0:00:55"]
[BlackClock "0:00:02"]

1. Nf3 {[%clk 0:02:58]}  c5 {[%clk 0:02:59]} 2. e4 {[%clk 0:02:56]}  Nc6 {[%clk 0:02:58]} 3. Nc3 {[%clk 0:02:54]}  g6 {[%clk 0:02:57]} 4. Bd3 {[%clk 0:02:50]}  Bg7 {[%clk 0:02:57]} 5. O-O {[%clk 0:02:48]}  Nf6 {[%clk 0:02:54]} 6. Re1 {[%clk 0:02:47]}  O-O {[%clk 0:02:51]} 7. b3 {[%clk 0:02:45]}  d6 {[%clk 0:02:50]} 8. h3 {[%clk 0:02:45]}  a6 {[%clk 0:02:44]} 9. Bb2 {[%clk 0:02:44]}  b5 {[%clk 0:02:39]} 10. a4 {[%clk 0:02:40]}  b4 {[%clk 0:02:39]} 11. Nd5 {[%clk 0:02:39]}  e5 {[%clk 0:02:30]} 12. Bc4 {[%clk 0:02:32]}  Ra7 {[%clk 0:01:57]} 13. c3 {[%clk 0:02:30]}  a5 {[%clk 0:01:47]} 14. Nxf6+ {[%clk 0:02:12]}  Bxf6 {[%clk 0:01:47]} 15. Bd5 {[%clk 0:02:13]}  Ne7 {[%clk 0:01:45]} 16. Bc4 {[%clk 0:02:08]}  Nc6 {[%clk 0:01:44]} 17. Bb5 {[%clk 0:02:05]}  Bd7 {[%clk 0:01:39]} 18. Rc1 {[%clk 0:02:01]}  Bg7 {[%clk 0:01:38]} 19. Bxc6 {[%clk 0:01:47]}  Bxc6 {[%clk 0:01:38]} 20. d4 {[%clk 0:01:47]}  bxc3 {[%clk 0:01:26]} 21. Bxc3 {[%clk 0:01:45]}  cxd4 {[%clk 0:00:50]} 22. Bxd4 {[%clk 0:01:45]}  Ra6 {[%clk 0:00:50]} 23. Qd3 {[%clk 0:01:41]}  Bb7 {[%clk 0:00:47]} 24. Bb2 {[%clk 0:01:37]}  Qa8 {[%clk 0:00:44]} 25. Nd2 {[%clk 0:01:33]}  d5 {[%clk 0:00:40]} 26. exd5 {[%clk 0:01:33]}  Bxd5 {[%clk 0:00:40]} 27. Ne4 {[%clk 0:01:29]}  Rb6 {[%clk 0:00:31]} 28. Rc5 {[%clk 0:01:24]}  Rxb3 {[%clk 0:00:24]} 29. Bc3 {[%clk 0:01:25]}  Be6 {[%clk 0:00:22]} 30. Qd2 {[%clk 0:01:18]}  Rd8 {[%clk 0:00:20]} 31. Qg5 {[%clk 0:01:14]}  Rd5 {[%clk 0:00:18]} 32. Rc7 {[%clk 0:01:11]}  h6 {[%clk 0:00:16]} 33. Qe7 {[%clk 0:01:09]}  Qd8 {[%clk 0:00:14]} 34. Qxd8+ {[%clk 0:01:05]}  Rxd8 {[%clk 0:00:15]} 35. Bxa5 {[%clk 0:01:05]}  Ra8 {[%clk 0:00:13]} 36. Bd2 {[%clk 0:01:02]}  Rxa4 {[%clk 0:00:13]} 37. Nc5 {[%clk 0:00:57]}  Ra2 {[%clk 0:00:01]} 38. Nxb3 {[%clk 0:00:57]}  Bxb3 {[%clk 0:00:02]} 39. Bc3 {[%clk 0:00:55]} 1-0


[Site "https://www.chess.com"]

[Event "Titled Tuesday Blitz February 07 Early 2023"]
[White "Jakubowska, Anna"]
[Black "Belozerov, Andrei"]
[WhiteFideId "1121952"]
[BlackFideId "4120213"]
[WhiteElo "2139"]
[BlackElo "2461"]
[Result "1-0"]
[Round "03"]
[TimeControl "180+2"]
[Date "2023.02.07"]
[WhiteClock "0:01:18"]
[BlackClock "0:00:04"]

1. e4 {[%clk 0:03:00]}  c5 {[%clk 0:00:01]} 2. Nc3 {[%clk 0:02:55]}  Nc6 {[%clk 0:00:01]} 3. g3 {[%clk 0:02:56]}  g6 {[%clk 0:00:02]} 4. Bg2 {[%clk 0:02:56]}  Bg7 {[%clk 0:00:03]} 5. d3 {[%clk 0:02:56]}  d6 {[%clk 0:00:04]} 6. Nh3 {[%clk 0:02:56]}  e5 {[%clk 0:00:04]} 7. O-O {[%clk 0:02:55]}  Nge7 {[%clk 0:00:04]} 8. f4 {[%clk 0:02:54]}  O-O {[%clk 0:00:05]} 9. f5 {[%clk 0:02:54]}  gxf5 {[%clk 0:00:05]} 10. exf5 {[%clk 0:02:54]}  Bxf5 {[%clk 0:00:05]} 11. Rxf5 {[%clk 0:02:53]}  Nxf5 {[%clk 0:00:05]} 12. Be4 {[%clk 0:02:52]}  Nfe7 {[%clk 0:00:05]} 13. Bxh7+ {[%clk 0:02:49]}  Kxh7 {[%clk 0:00:04]} 14. Qh5+ {[%clk 0:02:48]}  Kg8 {[%clk 0:00:04]} 15. Ng5 {[%clk 0:02:48]}  Re8 {[%clk 0:00:04]} 16. Qxf7+ {[%clk 0:02:45]}  Kh8 {[%clk 0:00:04]} 17. Qh5+ {[%clk 0:02:45]}  Kg8 {[%clk 0:00:04]} 18. Qh7+ {[%clk 0:02:44]}  Kf8 {[%clk 0:00:04]} 19. Ne6+ {[%clk 0:02:44]}  Kf7 {[%clk 0:00:04]} 20. Nxd8+ {[%clk 0:02:34]}  Raxd8 {[%clk 0:00:04]} 21. Bh6 {[%clk 0:02:32]}  Rg8 {[%clk 0:00:04]} 22. Rf1+ {[%clk 0:02:31]}  Ke6 {[%clk 0:00:04]} 23. Bxg7 {[%clk 0:02:27]}  Nd4 {[%clk 0:00:04]} 24. Qh3+ {[%clk 0:02:21]}  Nef5 {[%clk 0:00:04]} 25. Nb5 {[%clk 0:02:01]}  Rxg7 {[%clk 0:00:04]} 26. Nxd4+ {[%clk 0:01:59]}  cxd4 {[%clk 0:00:04]} 27. Qxf5+ {[%clk 0:01:58]}  Kd5 {[%clk 0:00:04]} 28. c3 {[%clk 0:01:28]}  dxc3 {[%clk 0:00:04]} 29. Qe4+ {[%clk 0:01:20]}  Ke6 {[%clk 0:00:04]} 30. bxc3 {[%clk 0:01:18]}  d5 {[%clk 0:00:04]} 31. Qf5+ {[%clk 0:01:18]} 1-0


[Site "https://www.chess.com"]

[Event "Titled Tuesday Blitz February 07 Early 2023"]
[White "Fernandez Garcia, Gumersindo"]
[Black "Kononenko, Dmitry"]
[WhiteFideId "24516740"]
[BlackFideId "14113538"]
[WhiteElo "2160"]
[BlackElo "2256"]
[Result "1/2-1/2"]
[Round "03"]
[TimeControl "180+2"]
[Date "2023.02.07"]
[WhiteClock "0:00:08"]
[BlackClock "0:00:20"]

1. e4 {[%clk 0:02:38]}  d5 {[%clk 0:02:58]} 2. exd5 {[%clk 0:02:38]}  Qxd5 {[%clk 0:02:59]} 3. Nc3 {[%clk 0:02:38]}  Qa5 {[%clk 0:03:00]} 4. d4 {[%clk 0:02:37]}  Nf6 {[%clk 0:03:00]} 5. Nf3 {[%clk 0:02:37]}  Bg4 {[%clk 0:03:01]} 6. Be2 {[%clk 0:02:37]}  Nc6 {[%clk 0:03:00]} 7. h3 {[%clk 0:02:38]}  Bh5 {[%clk 0:03:00]} 8. Bd2 {[%clk 0:02:35]}  O-O-O {[%clk 0:02:51]} 9. Nb5 {[%clk 0:01:52]}  Qb6 {[%clk 0:02:50]} 10. a4 {[%clk 0:01:53]}  Bxf3 {[%clk 0:02:41]} 11. Bxf3 {[%clk 0:01:36]}  Nxd4 {[%clk 0:02:38]} 12. Be3 {[%clk 0:01:25]}  e5 {[%clk 0:02:24]} 13. O-O {[%clk 0:01:23]}  Bc5 {[%clk 0:02:19]} 14. Nxd4 {[%clk 0:01:17]}  Bxd4 {[%clk 0:02:17]} 15. Bxd4 {[%clk 0:01:13]}  Qxd4 {[%clk 0:02:16]} 16. Qe2 {[%clk 0:01:12]}  e4 {[%clk 0:02:11]} 17. Bg4+ {[%clk 0:01:10]}  Kb8 {[%clk 0:02:10]} 18. Rad1 {[%clk 0:01:00]}  Qe5 {[%clk 0:02:09]} 19. Qc4 {[%clk 0:00:55]}  h5 {[%clk 0:02:02]} 20. Be2 {[%clk 0:00:55]}  e3 {[%clk 0:01:42]} 21. Bf3 {[%clk 0:00:33]}  exf2+ {[%clk 0:01:35]} 22. Rxf2 {[%clk 0:00:32]}  Rxd1+ {[%clk 0:01:21]} 23. Bxd1 {[%clk 0:00:33]}  Rd8 {[%clk 0:01:15]} 24. Bf3 {[%clk 0:00:30]}  Qe3 {[%clk 0:01:09]} 25. Qb5 {[%clk 0:00:20]}  Qb6 {[%clk 0:01:08]} 26. Qxb6 {[%clk 0:00:20]}  axb6 {[%clk 0:01:07]} 27. g4 {[%clk 0:00:20]}  hxg4 {[%clk 0:01:06]} 28. hxg4 {[%clk 0:00:21]}  Ne8 {[%clk 0:00:53]} 29. Be4 {[%clk 0:00:21]}  Nd6 {[%clk 0:00:53]} 30. Bd3 {[%clk 0:00:21]}  Re8 {[%clk 0:00:53]} 31. Kg2 {[%clk 0:00:21]}  Re5 {[%clk 0:00:52]} 32. b3 {[%clk 0:00:21]}  Kc8 {[%clk 0:00:52]} 33. Kg3 {[%clk 0:00:22]}  Kd7 {[%clk 0:00:50]} 34. Kf4 {[%clk 0:00:22]}  f6 {[%clk 0:00:49]} 35. Rh2 {[%clk 0:00:23]}  Nf7 {[%clk 0:00:46]} 36. Rh7 {[%clk 0:00:22]}  Rg5 {[%clk 0:00:46]} 37. Bf5+ {[%clk 0:00:21]}  Ke7 {[%clk 0:00:45]} 38. Rh2 {[%clk 0:00:20]}  Ne5 {[%clk 0:00:44]} 39. Re2 {[%clk 0:00:20]}  g6 {[%clk 0:00:43]} 40. Rxe5+ {[%clk 0:00:15]}  Kf8 {[%clk 0:00:27]} 41. Re6 {[%clk 0:00:13]}  Kf7 {[%clk 0:00:23]} 42. Re2 {[%clk 0:00:08]}  gxf5 {[%clk 0:00:23]} 43. gxf5 {[%clk 0:00:09]}  Rg1 {[%clk 0:00:23]} 44. Rd2 {[%clk 0:00:10]}  Rf1+ {[%clk 0:00:21]} 45. Ke4 {[%clk 0:00:10]}  Re1+ {[%clk 0:00:22]} 46. Kf4 {[%clk 0:00:10]}  Ke7 {[%clk 0:00:21]} 47. Kg4 {[%clk 0:00:09]}  Rf1 {[%clk 0:00:20]} 48. Re2+ {[%clk 0:00:08]}  Kf7 {[%clk 0:00:20]} 49. Rd2 {[%clk 0:00:07]}  Rg1+ {[%clk 0:00:16]} 50. Kf4 {[%clk 0:00:07]}  Re1 {[%clk 0:00:15]} 51. Rd7+ {[%clk 0:00:07]}  Re7 {[%clk 0:00:15]} 52. Rxe7+ {[%clk 0:00:07]}  Kxe7 {[%clk 0:00:16]} 53. Ke4 {[%clk 0:00:08]}  Kd6 {[%clk 0:00:16]} 54. b4 {[%clk 0:00:08]}  c6 {[%clk 0:00:16]} 55. c4 {[%clk 0:00:07]}  Kd7 {[%clk 0:00:14]} 56. c5 {[%clk 0:00:07]}  bxc5 {[%clk 0:00:14]} 57. bxc5 {[%clk 0:00:08]}  Ke7 {[%clk 0:00:14]} 58. Kf4 {[%clk 0:00:08]}  Kf7 {[%clk 0:00:14]} 59. Kg4 {[%clk 0:00:08]}  Kg7 {[%clk 0:00:15]} 60. Kh4 {[%clk 0:00:08]}  Kh7 {[%clk 0:00:16]} 61. Kh5 {[%clk 0:00:08]}  Kg7 {[%clk 0:00:16]} 62. Kh4 {[%clk 0:00:09]}  Kh6 {[%clk 0:00:16]} 63. Kg4 {[%clk 0:00:09]}  Kh7 {[%clk 0:00:17]} 64. Kh4 {[%clk 0:00:09]}  Kg7 {[%clk 0:00:18]} 65. Kg4 {[%clk 0:00:10]}  Kh7 {[%clk 0:00:19]} 66. Kf4 {[%clk 0:00:06]}  Kg7 {[%clk 0:00:20]} 67. Kg4 {[%clk 0:00:06]}  Kh6 {[%clk 0:00:20]} 68. Kh4 {[%clk 0:00:06]}  Kh7 {[%clk 0:00:21]} 69. Kg4 {[%clk 0:00:07]}  Kg7 {[%clk 0:00:20]} 70. Kh4 {[%clk 0:00:08]} 1/2-1/2


[Site "https://www.chess.com"]

[Event "Titled Tuesday Blitz February 07 Early 2023"]
[White "Brilej, Jaka"]
[Black "Korobov, Anton"]
[WhiteFideId "14618818"]
[BlackFideId "14105730"]
[WhiteElo "2321"]
[BlackElo "2664"]
[Result "0-1"]
[Round "03"]
[TimeControl "180+2"]
[Date "2023.02.07"]
[WhiteClock "0:00:48"]
[BlackClock "0:01:45"]

1. e4 {[%clk 0:03:00]}  c5 {[%clk 0:02:56]} 2. Nf3 {[%clk 0:02:56]}  d6 {[%clk 0:02:54]} 3. d4 {[%clk 0:02:56]}  cxd4 {[%clk 0:02:55]} 4. Nxd4 {[%clk 0:02:57]}  Nf6 {[%clk 0:02:56]} 5. Nc3 {[%clk 0:02:57]}  a6 {[%clk 0:02:56]} 6. h3 {[%clk 0:02:55]}  Nc6 {[%clk 0:02:54]} 7. Be2 {[%clk 0:02:53]}  e6 {[%clk 0:02:52]} 8. O-O {[%clk 0:02:52]}  Be7 {[%clk 0:02:51]} 9. Be3 {[%clk 0:02:52]}  O-O {[%clk 0:02:51]} 10. a4 {[%clk 0:02:50]}  Qc7 {[%clk 0:02:50]} 11. Nxc6 {[%clk 0:02:45]}  bxc6 {[%clk 0:02:50]} 12. a5 {[%clk 0:02:43]}  c5 {[%clk 0:02:49]} 13. f4 {[%clk 0:02:40]}  Rb8 {[%clk 0:02:49]} 14. b3 {[%clk 0:02:38]}  Rb4 {[%clk 0:02:49]} 15. Bf3 {[%clk 0:02:35]}  Bb7 {[%clk 0:02:49]} 16. Qd3 {[%clk 0:02:11]}  c4 {[%clk 0:02:47]} 17. bxc4 {[%clk 0:02:12]}  Rxc4 {[%clk 0:02:48]} 18. Ne2 {[%clk 0:02:03]}  Bxe4 {[%clk 0:02:41]} 19. Bxe4 {[%clk 0:02:01]}  Nxe4 {[%clk 0:02:42]} 20. Bb6 {[%clk 0:01:58]}  Qc8 {[%clk 0:02:34]} 21. f5 {[%clk 0:01:46]}  exf5 {[%clk 0:02:31]} 22. Nd4 {[%clk 0:01:45]}  g6 {[%clk 0:02:28]} 23. Rae1 {[%clk 0:01:30]}  Bh4 {[%clk 0:02:23]} 24. Rxe4 {[%clk 0:01:19]}  fxe4 {[%clk 0:02:20]} 25. Qxe4 {[%clk 0:01:19]}  Bg3 {[%clk 0:02:14]} 26. Qd5 {[%clk 0:01:11]}  Be5 {[%clk 0:02:12]} 27. Nf3 {[%clk 0:01:09]}  Qc6 {[%clk 0:02:07]} 28. Qd3 {[%clk 0:01:06]}  Bg7 {[%clk 0:02:04]} 29. Nd4 {[%clk 0:01:01]}  Qc8 {[%clk 0:01:56]} 30. Nf3 {[%clk 0:00:56]}  Rxc2 {[%clk 0:01:51]} 31. Qxd6 {[%clk 0:00:56]}  Qc6 {[%clk 0:01:48]} 32. Qd3 {[%clk 0:00:55]}  Re8 {[%clk 0:01:47]} 33. Nd4 {[%clk 0:00:48]}  Qxg2# {[%clk 0:01:45]} 0-1


[Site "https://www.chess.com"]

[Event "Titled Tuesday Blitz February 07 Early 2023"]
[White "Mitrabha, Guha"]
[Black "Colas, Joshua"]
[WhiteFideId "5057000"]
[BlackFideId "2044447"]
[WhiteElo "2507"]
[BlackElo "2342"]
[Result "0-1"]
[Round "03"]
[TimeControl "180+2"]
[Date "2023.02.07"]
[WhiteClock "0:01:14"]
[BlackClock "0:00:17"]

1. c4 {[%clk 0:03:00]}  Nf6 {[%clk 0:02:44]} 2. Nc3 {[%clk 0:02:58]}  c5 {[%clk 0:02:33]} 3. g3 {[%clk 0:02:56]}  Nc6 {[%clk 0:02:31]} 4. Bg2 {[%clk 0:02:56]}  e6 {[%clk 0:02:30]} 5. Nf3 {[%clk 0:02:55]}  d5 {[%clk 0:02:30]} 6. cxd5 {[%clk 0:02:55]}  Nxd5 {[%clk 0:02:30]} 7. d4 {[%clk 0:02:56]}  Nxc3 {[%clk 0:02:22]} 8. bxc3 {[%clk 0:02:55]}  cxd4 {[%clk 0:02:22]} 9. cxd4 {[%clk 0:02:55]}  Bb4+ {[%clk 0:02:22]} 10. Bd2 {[%clk 0:02:54]}  Bxd2+ {[%clk 0:02:23]} 11. Qxd2 {[%clk 0:02:55]}  O-O {[%clk 0:02:23]} 12. Rc1 {[%clk 0:02:55]}  Bd7 {[%clk 0:02:13]} 13. O-O {[%clk 0:02:54]}  Qe7 {[%clk 0:02:11]} 14. e4 {[%clk 0:02:53]}  Rfd8 {[%clk 0:02:08]} 15. Rfe1 {[%clk 0:02:49]}  Rac8 {[%clk 0:02:07]} 16. d5 {[%clk 0:02:48]}  Be8 {[%clk 0:02:07]} 17. Qb2 {[%clk 0:02:43]}  Qb4 {[%clk 0:02:00]} 18. Qxb4 {[%clk 0:02:35]}  Nxb4 {[%clk 0:02:01]} 19. dxe6 {[%clk 0:02:34]}  fxe6 {[%clk 0:01:42]} 20. Rb1 {[%clk 0:02:33]}  Nd3 {[%clk 0:01:05]} 21. Red1 {[%clk 0:02:26]}  Ba4 {[%clk 0:00:58]} 22. Rd2 {[%clk 0:02:25]}  b6 {[%clk 0:00:54]} 23. Bh3 {[%clk 0:02:21]}  Nc5 {[%clk 0:00:54]} 24. Rbb2 {[%clk 0:02:08]}  h6 {[%clk 0:00:47]} 25. Nd4 {[%clk 0:02:05]}  Kf7 {[%clk 0:00:45]} 26. f3 {[%clk 0:02:05]}  Rc7 {[%clk 0:00:31]} 27. Ne2 {[%clk 0:01:56]}  Rcd7 {[%clk 0:00:28]} 28. Rxd7+ {[%clk 0:01:55]}  Rxd7 {[%clk 0:00:29]} 29. e5 {[%clk 0:01:53]}  Rd1+ {[%clk 0:00:29]} 30. Kg2 {[%clk 0:01:53]}  Nd3 {[%clk 0:00:30]} 31. Nf4 {[%clk 0:01:33]}  Nxb2 {[%clk 0:00:26]} 32. Bxe6+ {[%clk 0:01:34]}  Ke7 {[%clk 0:00:25]} 33. Bg8 {[%clk 0:01:35]}  Rd2+ {[%clk 0:00:23]} 34. Kh3 {[%clk 0:01:35]}  Bd7+ {[%clk 0:00:22]} 35. e6 {[%clk 0:01:35]}  g5 {[%clk 0:00:21]} 36. Ng6+ {[%clk 0:01:32]}  Kf6 {[%clk 0:00:22]} 37. Nf8 {[%clk 0:01:28]}  Be8 {[%clk 0:00:18]} 38. Bh7 {[%clk 0:01:19]}  Ke7 {[%clk 0:00:16]} 39. Ng6+ {[%clk 0:01:14]}  Bxg6 {[%clk 0:00:17]} 40. Bxg6 {[%clk 0:01:15]}  Kxe6 {[%clk 0:00:17]} 41. f4 {[%clk 0:01:11]}  gxf4 {[%clk 0:00:17]} 42. gxf4 {[%clk 0:01:11]}  Nd3 {[%clk 0:00:16]} 43. Kg4 {[%clk 0:01:12]}  Nf2+ {[%clk 0:00:15]} 44. Kh5 {[%clk 0:01:11]}  Rxa2 {[%clk 0:00:16]} 45. Kxh6 {[%clk 0:01:12]}  Ng4+ {[%clk 0:00:16]} 46. Kg5 {[%clk 0:01:12]}  Nxh2 {[%clk 0:00:16]} 47. f5+ {[%clk 0:01:13]}  Ke7 {[%clk 0:00:17]} 48. Kh6 {[%clk 0:01:14]}  Kf8 {[%clk 0:00:17]} 0-1


[Site "https://www.chess.com"]

[Event "Titled Tuesday Blitz February 07 Early 2023"]
[White "Lobanov, Sergei"]
[Black "Tokman, Ariel"]
[WhiteFideId "24183750"]
[BlackFideId "117420"]
[WhiteElo "2536"]
[BlackElo "2330"]
[Result "1-0"]
[Round "03"]
[TimeControl "180+2"]
[Date "2023.02.07"]
[WhiteClock "0:00:38"]
[BlackClock "0:01:03"]

1. e4 {[%clk 0:03:00]}  c5 {[%clk 0:02:58]} 2. Nf3 {[%clk 0:03:01]}  e6 {[%clk 0:02:59]} 3. d4 {[%clk 0:03:00]}  cxd4 {[%clk 0:03:00]} 4. Nxd4 {[%clk 0:03:01]}  a6 {[%clk 0:03:00]} 5. Bd3 {[%clk 0:02:59]}  Bc5 {[%clk 0:02:59]} 6. Nb3 {[%clk 0:02:58]}  Ba7 {[%clk 0:02:59]} 7. Qe2 {[%clk 0:02:53]}  Nc6 {[%clk 0:02:59]} 8. Nc3 {[%clk 0:02:48]}  d6 {[%clk 0:02:58]} 9. Be3 {[%clk 0:02:48]}  Nf6 {[%clk 0:02:57]} 10. Bxa7 {[%clk 0:02:44]}  Rxa7 {[%clk 0:02:58]} 11. g4 {[%clk 0:02:42]}  e5 {[%clk 0:02:50]} 12. g5 {[%clk 0:02:39]}  Nd7 {[%clk 0:02:50]} 13. h4 {[%clk 0:02:35]}  Nf8 {[%clk 0:02:49]} 14. O-O-O {[%clk 0:02:32]}  Ne6 {[%clk 0:02:45]} 15. Nd5 {[%clk 0:02:32]}  Ned4 {[%clk 0:02:36]} 16. Nxd4 {[%clk 0:02:26]}  Nxd4 {[%clk 0:02:37]} 17. Qe3 {[%clk 0:02:27]}  Be6 {[%clk 0:02:36]} 18. c3 {[%clk 0:02:26]}  Nc6 {[%clk 0:02:36]} 19. h5 {[%clk 0:02:18]}  Ra8 {[%clk 0:02:14]} 20. h6 {[%clk 0:02:08]}  g6 {[%clk 0:02:06]} 21. Bc4 {[%clk 0:01:42]}  b5 {[%clk 0:01:49]} 22. Nf6+ {[%clk 0:01:40]}  Ke7 {[%clk 0:01:48]} 23. Bd5 {[%clk 0:01:38]}  Rc8 {[%clk 0:01:43]} 24. Kb1 {[%clk 0:01:38]}  Qc7 {[%clk 0:01:35]} 25. Rd2 {[%clk 0:01:35]}  Na5 {[%clk 0:01:31]} 26. Rhd1 {[%clk 0:01:27]}  Rcd8 {[%clk 0:01:20]} 27. b3 {[%clk 0:01:23]}  Nc6 {[%clk 0:01:06]} 28. Kb2 {[%clk 0:00:57]}  Nb8 {[%clk 0:01:05]} 29. f4 {[%clk 0:00:47]}  Nd7 {[%clk 0:01:03]} 30. Bxe6 {[%clk 0:00:46]}  Nxf6 {[%clk 0:01:03]} 31. Bh3 {[%clk 0:00:38]} 1-0


[Site "https://www.chess.com"]

[Event "Titled Tuesday Blitz February 07 Early 2023"]
[White "Shuvalov, Evgenij"]
[Black "Kosakowski, Jakub"]
[WhiteFideId "4187237"]
[BlackFideId "1185080"]
[WhiteElo "2038"]
[BlackElo "2485"]
[Result "0-1"]
[Round "03"]
[TimeControl "180+2"]
[Date "2023.02.07"]
[WhiteClock "0:00:01"]
[BlackClock "0:00:05"]

1. d4 {[%clk 0:03:00]}  Nf6 {[%clk 0:02:05]} 2. c4 {[%clk 0:03:00]}  e6 {[%clk 0:02:05]} 3. Nc3 {[%clk 0:02:59]}  Bb4 {[%clk 0:02:06]} 4. a3 {[%clk 0:02:59]}  Bxc3+ {[%clk 0:02:06]} 5. bxc3 {[%clk 0:03:00]}  O-O {[%clk 0:02:05]} 6. f3 {[%clk 0:02:59]}  c5 {[%clk 0:01:57]} 7. e4 {[%clk 0:02:58]}  d6 {[%clk 0:01:56]} 8. Bg5 {[%clk 0:02:55]}  Nc6 {[%clk 0:01:55]} 9. Ne2 {[%clk 0:02:53]}  h6 {[%clk 0:01:52]} 10. Bh4 {[%clk 0:02:53]}  cxd4 {[%clk 0:01:46]} 11. cxd4 {[%clk 0:02:52]}  Qa5+ {[%clk 0:01:46]} 12. Kf2 {[%clk 0:02:44]}  g5 {[%clk 0:01:39]} 13. Bg3 {[%clk 0:02:44]}  e5 {[%clk 0:01:29]} 14. d5 {[%clk 0:02:37]}  Qb6+ {[%clk 0:01:25]} 15. Ke1 {[%clk 0:02:36]}  Na5 {[%clk 0:01:25]} 16. Bf2 {[%clk 0:02:28]}  Qc7 {[%clk 0:01:22]} 17. Rc1 {[%clk 0:02:21]}  Nxc4 {[%clk 0:01:05]} 18. h4 {[%clk 0:01:44]}  g4 {[%clk 0:01:03]} 19. h5 {[%clk 0:01:32]}  Bd7 {[%clk 0:01:00]} 20. Qd3 {[%clk 0:01:15]}  Rac8 {[%clk 0:00:57]} 21. Bh4 {[%clk 0:01:04]}  Nh7 {[%clk 0:00:51]} 22. Ng3 {[%clk 0:01:00]}  Qa5+ {[%clk 0:00:49]} 23. Qc3 {[%clk 0:00:48]}  Qxc3+ {[%clk 0:00:19]} 24. Rxc3 {[%clk 0:00:48]}  b5 {[%clk 0:00:15]} 25. Bxc4 {[%clk 0:00:45]}  Rxc4 {[%clk 0:00:15]} 26. Rxc4 {[%clk 0:00:45]}  bxc4 {[%clk 0:00:16]} 27. Be7 {[%clk 0:00:44]}  Rb8 {[%clk 0:00:16]} 28. Bxd6 {[%clk 0:00:44]}  Rb1+ {[%clk 0:00:16]} 29. Kd2 {[%clk 0:00:43]}  Rb2+ {[%clk 0:00:16]} 30. Kc3 {[%clk 0:00:41]}  Rxg2 {[%clk 0:00:16]} 31. Bxe5 {[%clk 0:00:40]}  gxf3 {[%clk 0:00:16]} 32. Rf1 {[%clk 0:00:38]}  Ng5 {[%clk 0:00:16]} 33. Kxc4 {[%clk 0:00:31]}  a6 {[%clk 0:00:10]} 34. Kd4 {[%clk 0:00:31]}  Bb5 {[%clk 0:00:09]} 35. Rc1 {[%clk 0:00:28]}  f6 {[%clk 0:00:06]} 36. Bf4 {[%clk 0:00:20]}  f2 {[%clk 0:00:06]} 37. Nf1 {[%clk 0:00:17]}  Nf3+ {[%clk 0:00:05]} 38. Ke3 {[%clk 0:00:16]}  Ne1 {[%clk 0:00:05]} 39. Nd2 {[%clk 0:00:13]}  Nd3 {[%clk 0:00:05]} 40. Rc8+ {[%clk 0:00:09]}  Kf7 {[%clk 0:00:06]} 41. Bxh6 {[%clk 0:00:07]}  Rg3+ {[%clk 0:00:06]} 42. Kd4 {[%clk 0:00:06]}  Ne5 {[%clk 0:00:07]} 43. Rc3 {[%clk 0:00:02]}  Nf3+ {[%clk 0:00:04]} 44. Rxf3 {[%clk 0:00:01]}  Rxf3 {[%clk 0:00:05]} 0-1


[Site "https://www.chess.com"]

[Event "Titled Tuesday Blitz February 07 Early 2023"]
[White "Mortazavi, Ali"]
[Black "Goltsev, Dmitry"]
[WhiteFideId "401323"]
[BlackFideId "24176710"]
[WhiteElo "2333"]
[BlackElo "2269"]
[Result "1-0"]
[Round "03"]
[TimeControl "180+2"]
[Date "2023.02.07"]
[WhiteClock "0:00:30"]
[BlackClock "0:00:29"]

1. e4 {[%clk 0:03:00]}  e6 {[%clk 0:03:00]} 2. d4 {[%clk 0:03:00]}  d5 {[%clk 0:03:01]} 3. e5 {[%clk 0:03:00]}  c5 {[%clk 0:03:01]} 4. c3 {[%clk 0:03:00]}  Nc6 {[%clk 0:03:02]} 5. Nf3 {[%clk 0:03:01]}  Nge7 {[%clk 0:03:02]} 6. Bd3 {[%clk 0:03:00]}  Nf5 {[%clk 0:03:03]} 7. dxc5 {[%clk 0:02:55]}  Bxc5 {[%clk 0:03:02]} 8. b4 {[%clk 0:02:55]}  Be7 {[%clk 0:03:01]} 9. a4 {[%clk 0:02:49]}  h5 {[%clk 0:03:00]} 10. Bxf5 {[%clk 0:02:38]}  exf5 {[%clk 0:03:01]} 11. h4 {[%clk 0:02:39]}  Be6 {[%clk 0:03:01]} 12. Bf4 {[%clk 0:02:28]}  Rc8 {[%clk 0:02:57]} 13. Na3 {[%clk 0:02:17]}  a6 {[%clk 0:02:53]} 14. Nc2 {[%clk 0:02:16]}  Nb8 {[%clk 0:02:48]} 15. Qd2 {[%clk 0:02:08]}  Nd7 {[%clk 0:02:48]} 16. a5 {[%clk 0:02:07]}  Qc7 {[%clk 0:02:49]} 17. Ra3 {[%clk 0:02:06]}  b6 {[%clk 0:02:48]} 18. O-O {[%clk 0:01:43]}  bxa5 {[%clk 0:02:41]} 19. Rxa5 {[%clk 0:01:40]}  Qxc3 {[%clk 0:02:41]} 20. Qxc3 {[%clk 0:01:35]}  Rxc3 {[%clk 0:02:42]} 21. Ncd4 {[%clk 0:01:35]}  Bxb4 {[%clk 0:02:17]} 22. Rxa6 {[%clk 0:01:35]}  O-O {[%clk 0:02:05]} 23. Nxe6 {[%clk 0:01:29]}  fxe6 {[%clk 0:02:06]} 24. Rxe6 {[%clk 0:01:27]}  Nc5 {[%clk 0:02:07]} 25. Rb6 {[%clk 0:01:19]}  Nd3 {[%clk 0:02:05]} 26. Bg5 {[%clk 0:01:17]}  Bc5 {[%clk 0:02:04]} 27. Rb7 {[%clk 0:01:15]}  Rc2 {[%clk 0:02:03]} 28. Be3 {[%clk 0:01:07]}  Bxe3 {[%clk 0:02:04]} 29. fxe3 {[%clk 0:01:08]}  Re2 {[%clk 0:02:05]} 30. Ra1 {[%clk 0:00:59]}  Nc5 {[%clk 0:01:57]} 31. Re7 {[%clk 0:00:54]}  f4 {[%clk 0:01:05]} 32. Raa7 {[%clk 0:00:41]}  Rf5 {[%clk 0:01:05]} 33. Rxg7+ {[%clk 0:00:40]}  Kf8 {[%clk 0:01:05]} 34. Rh7 {[%clk 0:00:39]}  Kg8 {[%clk 0:01:03]} 35. Rhg7+ {[%clk 0:00:35]}  Kf8 {[%clk 0:01:02]} 36. Ng5 {[%clk 0:00:36]}  Rxg5 {[%clk 0:00:46]} 37. hxg5 {[%clk 0:00:34]}  Ne4 {[%clk 0:00:44]} 38. Rgf7+ {[%clk 0:00:31]}  Ke8 {[%clk 0:00:38]} 39. g6 {[%clk 0:00:30]}  Ng3 {[%clk 0:00:29]} 40. Ra8# {[%clk 0:00:30]} 1-0


[Site "https://www.chess.com"]